[Event "Late-Titled-Tuesday-Blitz-February-20-2024"]
[Site "Chess.com"]
[Date "2024.02.20"]
[Round "5"]
[White "jsdbv18"]
[Black "David_George21"]
[Result "1-0"]
[WhiteElo "2624"]
[BlackElo "2391"]
[TimeControl "180+1"]
[EndTime "14:56:28 PST"]
[Termination "jsdbv18 won on time"]

1. d4 {[%clk 0:02:51.8]} 1... Nf6 {[%clk 0:02:58.7]} 2. Nf3 {[%clk 0:02:52.4]}
2... e6 {[%clk 0:02:57.4]} 3. Bg5 {[%clk 0:02:52.7]} 3... c5 {[%clk 0:02:56.5]}
4. e3 {[%clk 0:02:52.6]} 4... d5 {[%clk 0:02:55.6]} 5. Nbd2 {[%clk 0:02:52.3]}
5... Nc6 {[%clk 0:02:54.3]} 6. c3 {[%clk 0:02:52.4]} 6... Be7 {[%clk 0:02:54.1]}
7. Bd3 {[%clk 0:02:51.9]} 7... O-O {[%clk 0:02:54]} 8. O-O {[%clk 0:02:50.7]}
8... h6 {[%clk 0:02:53.9]} 9. Bh4 {[%clk 0:02:50.5]} 9... Qc7 {[%clk 0:02:48.8]}
10. Bg3 {[%clk 0:02:49.8]} 10... Bd6 {[%clk 0:02:48]} 11. dxc5 {[%clk
0:02:49.7]} 11... Bxg3 {[%clk 0:02:47.2]} 12. hxg3 {[%clk 0:02:49.9]} 12... a5
{[%clk 0:02:47.6]} 13. a4 {[%clk 0:02:47.4]} 13... Nd7 {[%clk 0:02:33.7]} 14.
Nb3 {[%clk 0:02:47]} 14... e5 {[%clk 0:02:32.7]} 15. Bb5 {[%clk 0:02:43.6]}
15... Ne7 {[%clk 0:02:29.6]} 16. Bxd7 {[%clk 0:02:36.7]} 16... Bxd7 {[%clk
0:02:30.5]} 17. Qc2 {[%clk 0:02:32.2]} 17... Bf5 {[%clk 0:02:25.2]} 18. Qd1
{[%clk 0:02:31.5]} 18... Be6 {[%clk 0:02:14.4]} 19. Re1 {[%clk 0:02:30.3]} 19...
f5 {[%clk 0:02:13.6]} 20. Nfd2 {[%clk 0:02:25.8]} 20... Rac8 {[%clk 0:01:53.6]}
21. Qe2 {[%clk 0:02:19.4]} 21... Nc6 {[%clk 0:01:48.5]} 22. Qb5 {[%clk 0:02:05]}
22... Bd7 {[%clk 0:01:24.8]} 23. Qb6 {[%clk 0:01:53.8]} 23... Qxb6 {[%clk
0:01:19.1]} 24. cxb6 {[%clk 0:01:54.1]} 24... Ra8 {[%clk 0:00:55.3]} 25. Nc5
{[%clk 0:01:51.8]} 25... Bc8 {[%clk 0:00:55.9]} 26. Nf3 {[%clk 0:01:48.5]} 26...
Rf6 {[%clk 0:00:51.4]} 27. Red1 {[%clk 0:01:48.2]} 27... Rd6 {[%clk 0:00:40.2]}
28. Rab1 {[%clk 0:01:27.2]} 28... Kf7 {[%clk 0:00:33.8]} 29. b4 {[%clk
0:01:25.6]} 29... Kf6 {[%clk 0:00:31.2]} 30. Nd2 {[%clk 0:01:01]} 30... Ke7
{[%clk 0:00:20]} 31. Nd3 {[%clk 0:00:54.1]} 31... axb4 {[%clk 0:00:15.4]} 32.
cxb4 {[%clk 0:00:54.5]} 32... Rxa4 {[%clk 0:00:15.5]} 33. b5 {[%clk 0:00:55.1]}
33... Ra3 {[%clk 0:00:12.7]} 34. bxc6 {[%clk 0:00:31.6]} 34... Rxd3 {[%clk
0:00:11.4]} 35. c7 {[%clk 0:00:32]} 35... Rc6 {[%clk 0:00:08.7]} 36. Kf1 {[%clk
0:00:29]} 36... Ke6 {[%clk 0:00:06.7]} 37. Ke2 {[%clk 0:00:27.8]} 37... Ra3
{[%clk 0:00:06.6]} 38. Rdc1 {[%clk 0:00:26.8]} 38... Rxc1 {[%clk 0:00:05.2]} 39.
Rxc1 {[%clk 0:00:27.2]} 39... Ra6 {[%clk 0:00:05.8]} 40. Rb1 {[%clk 0:00:27.3]}
40... Kd6 {[%clk 0:00:06.4]} 41. Rb2 {[%clk 0:00:22.5]} 41... Kc6 {[%clk
0:00:06.8]} 42. Nf3 {[%clk 0:00:23]} 42... Kd6 {[%clk 0:00:06.4]} 43. Kd2 {[%clk
0:00:19.3]} 43... g5 {[%clk 0:00:06.4]} 44. Kc3 {[%clk 0:00:17.6]} 44... g4
{[%clk 0:00:06.8]} 45. Nh4 {[%clk 0:00:14]} 45... Ra3+ {[%clk 0:00:07.2]} 46.
Kd2 {[%clk 0:00:13.8]} 46... Ra6 {[%clk 0:00:05.8]} 47. Ng6 {[%clk 0:00:14.1]}
47... Ke6 {[%clk 0:00:04.9]} 48. Ke2 {[%clk 0:00:12.8]} 48... Kf6 {[%clk
0:00:04.8]} 49. Nh4 {[%clk 0:00:12.8]} 49... Kg5 {[%clk 0:00:04.1]} 50. Kd2
{[%clk 0:00:11.9]} 50... Kf6 {[%clk 0:00:04]} 51. Kc3 {[%clk 0:00:12]} 51...
Ra3+ {[%clk 0:00:04]} 52. Kb4 {[%clk 0:00:12.5]} 52... Ra6 {[%clk 0:00:03.8]}
53. Kb5 {[%clk 0:00:13]} 53... Bd7+ {[%clk 0:00:02.8]} 54. Kc5 {[%clk
0:00:13.6]} 54... Bc8 {[%clk 0:00:01.3]} 55. Kd6 {[%clk 0:00:13.4]} 55... Ra5
{[%clk 0:00:01.4]} 56. Rb4 {[%clk 0:00:10.4]} 1-0

[Event "Late-Titled-Tuesday-Blitz-February-20-2024"]
[Site "Chess.com"]
[Date "2024.02.20"]
[Round "5"]
[White "MrKGG1"]
[Black "Stalri"]
[Result "1-0"]
[WhiteElo "2593"]
[BlackElo "2404"]
[TimeControl "180+1"]
[EndTime "14:56:28 PST"]
[Termination "MrKGG1 won on time"]

1. e4 {[%clk 0:03:00.9]} 1... Nc6 {[%clk 0:02:02.6]} 2. d4 {[%clk 0:02:57]} 2...
d5 {[%clk 0:01:49.1]} 3. Nc3 {[%clk 0:02:54.3]} 3... dxe4 {[%clk 0:01:32.4]} 4.
d5 {[%clk 0:02:53.3]} 4... Nb8 {[%clk 0:01:31]} 5. Nxe4 {[%clk 0:02:52.2]} 5...
c6 {[%clk 0:01:27.9]} 6. Nc3 {[%clk 0:02:46]} 6... cxd5 {[%clk 0:01:26.6]} 7.
Qxd5 {[%clk 0:02:45.3]} 7... Nf6 {[%clk 0:01:08.8]} 8. Qxd8+ {[%clk 0:02:42]}
8... Kxd8 {[%clk 0:01:09.7]} 9. Nf3 {[%clk 0:02:38.6]} 9... Nc6 {[%clk
0:01:08.3]} 10. Ng5 {[%clk 0:02:34.9]} 10... Be6 {[%clk 0:01:01.1]} 11. Bf4
{[%clk 0:02:22.8]} 11... a6 {[%clk 0:00:55.3]} 12. O-O-O+ {[%clk 0:02:18.2]}
12... Ke8 {[%clk 0:00:53.6]} 13. Nxe6 {[%clk 0:02:16.6]} 13... fxe6 {[%clk
0:00:54.5]} 14. Bc4 {[%clk 0:02:12.4]} 14... Kf7 {[%clk 0:00:53.9]} 15. Rhe1
{[%clk 0:02:12.2]} 15... h6 {[%clk 0:00:44.9]} 16. Bxe6+ {[%clk 0:02:05.3]}
16... Kg6 {[%clk 0:00:45.2]} 17. Nd5 {[%clk 0:02:02.7]} 17... Kh7 {[%clk
0:00:32.1]} 18. Nb6 {[%clk 0:01:56.1]} 18... Ra7 {[%clk 0:00:29]} 19. Be3 {[%clk
0:01:40.1]} 19... a5 {[%clk 0:00:27.6]} 20. a4 {[%clk 0:01:37.6]} 20... Nb4
{[%clk 0:00:22.2]} 21. c3 {[%clk 0:01:33.6]} 21... Nc6 {[%clk 0:00:22.4]} 22.
Bc5 {[%clk 0:01:32.7]} 22... Ra6 {[%clk 0:00:18.9]} 23. Bc8 {[%clk 0:01:25.5]}
23... Ra7 {[%clk 0:00:18.7]} 24. Be6 {[%clk 0:01:13.6]} 24... g6 {[%clk
0:00:18.4]} 25. f3 {[%clk 0:01:12]} 25... Kg7 {[%clk 0:00:18.3]} 26. Nd7 {[%clk
0:01:07.2]} 26... Ra8 {[%clk 0:00:16.7]} 27. Nxf6 {[%clk 0:01:03.8]} 27... Kxf6
{[%clk 0:00:17.3]} 28. Rd7 {[%clk 0:01:00.2]} 28... Rb8 {[%clk 0:00:16.6]} 29.
Bd5 {[%clk 0:00:53.3]} 29... e5 {[%clk 0:00:15]} 30. Rf7+ {[%clk 0:00:45.2]}
30... Kg5 {[%clk 0:00:13.8]} 31. Be3+ {[%clk 0:00:45]} 31... Kh5 {[%clk
0:00:13]} 32. Be4 {[%clk 0:00:27.9]} 32... Nd8 {[%clk 0:00:08.5]} 33. Rf6 {[%clk
0:00:22.8]} 33... Rg8 {[%clk 0:00:08.8]} 34. Rd1 {[%clk 0:00:19.2]} 34... Be7
{[%clk 0:00:08.2]} 35. g4+ {[%clk 0:00:16.4]} 35... Kh4 {[%clk 0:00:07.8]} 36.
Rxg6 {[%clk 0:00:16.8]} 36... Rxg6 {[%clk 0:00:07.1]} 37. Bxg6 {[%clk
0:00:17.7]} 37... Bg5 {[%clk 0:00:07.7]} 38. Bxg5+ {[%clk 0:00:16.9]} 38... hxg5
{[%clk 0:00:08.6]} 39. Bf5 {[%clk 0:00:12.2]} 39... Nc6 {[%clk 0:00:08.7]} 40.
Rd7 {[%clk 0:00:11.4]} 40... Rh8 {[%clk 0:00:08.5]} 41. Rxb7 {[%clk 0:00:10.6]}
41... Kh3 {[%clk 0:00:09]} 42. Be4 {[%clk 0:00:09.9]} 42... Nd8 {[%clk
0:00:08.3]} 43. Rb8 {[%clk 0:00:10.3]} 43... Kxh2 {[%clk 0:00:08.4]} 44. b4
{[%clk 0:00:10.3]} 44... axb4 {[%clk 0:00:07.8]} 45. cxb4 {[%clk 0:00:11.2]}
45... Kg3 {[%clk 0:00:07.4]} 46. a5 {[%clk 0:00:11]} 46... Rh1+ {[%clk
0:00:05.2]} 47. Kb2 {[%clk 0:00:11.2]} 47... Ne6 {[%clk 0:00:06.1]} 48. a6
{[%clk 0:00:10.5]} 48... Rh2+ {[%clk 0:00:05.6]} 49. Ka3 {[%clk 0:00:09.4]}
49... Nd4 {[%clk 0:00:05.9]} 50. a7 {[%clk 0:00:08.8]} 50... Rh1 {[%clk
0:00:02.5]} 51. a8=Q {[%clk 0:00:08.5]} 51... Ra1+ {[%clk 0:00:03.1]} 52. Kb2
{[%clk 0:00:08.9]} 52... Rg1 {[%clk 0:00:03.9]} 53. b5 {[%clk 0:00:07.1]} 53...
Rg2+ {[%clk 0:00:04.8]} 54. Kc3 {[%clk 0:00:07.1]} 1-0

[Event "Late-Titled-Tuesday-Blitz-February-20-2024"]
[Site "Chess.com"]
[Date "2024.02.20"]
[Round "5"]
[White "Polish_fighter3000"]
[Black "dedpihto_v_kozhanom_palto"]
[Result "1-0"]
[WhiteElo "3059"]
[BlackElo "2690"]
[TimeControl "180+1"]
[EndTime "14:56:30 PST"]
[Termination "Polish_fighter3000 won on time"]

1. c3 {[%clk 0:03:00.9]} 1... g6 {[%clk 0:02:59.5]} 2. e4 {[%clk 0:02:59.9]}
2... Bg7 {[%clk 0:02:59.1]} 3. d4 {[%clk 0:02:59.9]} 3... d6 {[%clk 0:02:59]} 4.
Nf3 {[%clk 0:02:57]} 4... Nc6 {[%clk 0:02:58.9]} 5. Bb5 {[%clk 0:02:55.4]} 5...
a6 {[%clk 0:02:58.1]} 6. Bxc6+ {[%clk 0:02:52.8]} 6... bxc6 {[%clk 0:02:59]} 7.
O-O {[%clk 0:02:52.8]} 7... Nf6 {[%clk 0:02:57.6]} 8. Re1 {[%clk 0:02:52.6]}
8... O-O {[%clk 0:02:57.7]} 9. Nbd2 {[%clk 0:02:49.3]} 9... Nd7 {[%clk
0:02:52.4]} 10. Nc4 {[%clk 0:02:33.3]} 10... c5 {[%clk 0:02:33.3]} 11. Na5
{[%clk 0:02:24.6]} 11... cxd4 {[%clk 0:02:27.6]} 12. Nc6 {[%clk 0:02:24.3]}
12... Qe8 {[%clk 0:02:27.6]} 13. cxd4 {[%clk 0:02:24.9]} 13... Bb7 {[%clk
0:02:13.8]} 14. Na5 {[%clk 0:02:24.2]} 14... Rb8 {[%clk 0:02:14.2]} 15. Qe2
{[%clk 0:02:05.2]} 15... c5 {[%clk 0:02:05.7]} 16. d5 {[%clk 0:01:25.3]} 16...
Qd8 {[%clk 0:01:51.3]} 17. Nxb7 {[%clk 0:01:15]} 17... Rxb7 {[%clk 0:01:52.2]}
18. Qxa6 {[%clk 0:01:14.5]} 18... Qa8 {[%clk 0:01:52.5]} 19. Qxa8 {[%clk
0:01:05.9]} 19... Rxa8 {[%clk 0:01:53.4]} 20. Re2 {[%clk 0:01:06.4]} 20... Rab8
{[%clk 0:01:43]} 21. Rb1 {[%clk 0:01:05.3]} 21... c4 {[%clk 0:01:32.5]} 22. a3
{[%clk 0:01:01.6]} 22... Rb3 {[%clk 0:01:04.6]} 23. Nd2 {[%clk 0:00:59.4]} 23...
Rd3 {[%clk 0:01:02.3]} 24. Kf1 {[%clk 0:00:58.7]} 24... c3 {[%clk 0:00:33.6]}
25. bxc3 {[%clk 0:00:57.3]} 25... Bxc3 {[%clk 0:00:31.1]} 26. Rxb8+ {[%clk
0:00:53.2]} 26... Nxb8 {[%clk 0:00:32]} 27. Re3 {[%clk 0:00:42.4]} 27... Rxe3
{[%clk 0:00:22.7]} 28. fxe3 {[%clk 0:00:43.3]} 28... Na6 {[%clk 0:00:19.7]} 29.
Nb3 {[%clk 0:00:38.3]} 29... Kg7 {[%clk 0:00:18.5]} 30. Ke2 {[%clk 0:00:37.9]}
30... Kf6 {[%clk 0:00:18.5]} 31. Bd2 {[%clk 0:00:32.2]} 31... Be5 {[%clk
0:00:19]} 32. h3 {[%clk 0:00:32]} 32... Kg5 {[%clk 0:00:19.5]} 33. Be1 {[%clk
0:00:31.3]} 33... h5 {[%clk 0:00:16.5]} 34. a4 {[%clk 0:00:27.2]} 34... Kf6
{[%clk 0:00:14.6]} 35. a5 {[%clk 0:00:25.7]} 35... g5 {[%clk 0:00:11.2]} 36. Kd3
{[%clk 0:00:20]} 36... e6 {[%clk 0:00:08.7]} 37. Kc4 {[%clk 0:00:19.7]} 37...
Nc7 {[%clk 0:00:08.6]} 38. Nd4 {[%clk 0:00:18.3]} 38... Bxd4 {[%clk 0:00:06.5]}
39. exd4 {[%clk 0:00:08.9]} 39... exd5+ {[%clk 0:00:05.7]} 40. exd5 {[%clk
0:00:09.8]} 40... Ke7 {[%clk 0:00:01.7]} 41. Bd2 {[%clk 0:00:08.2]} 41... f6
{[%clk 0:00:02.3]} 42. g3 {[%clk 0:00:07.5]} 42... Kf7 {[%clk 0:00:01.8]} 43. h4
{[%clk 0:00:05.9]} 43... gxh4 {[%clk 0:00:01.4]} 44. gxh4 {[%clk 0:00:06.8]}
44... Ke7 {[%clk 0:00:01.9]} 45. Bh6 {[%clk 0:00:05.8]} 45... Kf7 {[%clk
0:00:01.9]} 46. Be3 {[%clk 0:00:05.4]} 46... Ke7 {[%clk 0:00:02.5]} 47. Bf4
{[%clk 0:00:05.8]} 47... Kd7 {[%clk 0:00:02.8]} 48. Bg3 {[%clk 0:00:03.3]} 48...
Ke7 {[%clk 0:00:03.4]} 49. Be1 {[%clk 0:00:03]} 49... Kd7 {[%clk 0:00:03.3]} 50.
Kd3 {[%clk 0:00:02.7]} 50... Ke7 {[%clk 0:00:02.6]} 51. Ke4 {[%clk 0:00:02.8]}
51... Kd7 {[%clk 0:00:02.3]} 52. Bg3 {[%clk 0:00:03]} 52... Ke7 {[%clk
0:00:01.9]} 53. Kf5 {[%clk 0:00:03.1]} 53... Nxd5 {[%clk 0:00:01.4]} 54. a6
{[%clk 0:00:03.3]} 1-0

[Event "Late-Titled-Tuesday-Blitz-February-20-2024"]
[Site "Chess.com"]
[Date "2024.02.20"]
[Round "5"]
[White "SnekkerAndersen"]
[Black "jcibarra"]
[Result "0-1"]
[WhiteElo "2629"]
[BlackElo "2924"]
[TimeControl "180+1"]
[EndTime "14:56:32 PST"]
[Termination "jcibarra won by checkmate"]

1. d4 {[%clk 0:03:00.4]} 1... Nf6 {[%clk 0:02:56.1]} 2. c4 {[%clk 0:03:00.5]}
2... d6 {[%clk 0:02:48.2]} 3. Nf3 {[%clk 0:02:58.4]} 3... g6 {[%clk 0:02:46.4]}
4. Nc3 {[%clk 0:02:57.6]} 4... Bf5 {[%clk 0:02:46.4]} 5. g3 {[%clk 0:02:54.9]}
5... Ne4 {[%clk 0:02:43.4]} 6. Bd2 {[%clk 0:02:49.3]} 6... Bg7 {[%clk 0:02:42]}
7. Bg2 {[%clk 0:02:48.3]} 7... c5 {[%clk 0:02:42]} 8. d5 {[%clk 0:02:40.9]} 8...
Nxc3 {[%clk 0:02:40.1]} 9. Bxc3 {[%clk 0:02:40.9]} 9... Bxc3+ {[%clk 0:02:39.8]}
10. bxc3 {[%clk 0:02:41.8]} 10... Be4 {[%clk 0:02:37.7]} 11. O-O {[%clk
0:02:37.8]} 11... Nd7 {[%clk 0:02:37.1]} 12. Bh3 {[%clk 0:02:26.3]} 12... Bxf3
{[%clk 0:02:34.6]} 13. exf3 {[%clk 0:02:26.8]} 13... O-O {[%clk 0:02:34.4]} 14.
f4 {[%clk 0:02:26.8]} 14... Nf6 {[%clk 0:02:24.1]} 15. Re1 {[%clk 0:02:26.5]}
15... Re8 {[%clk 0:02:21.7]} 16. Qd2 {[%clk 0:02:17.9]} 16... Qa5 {[%clk
0:02:07.5]} 17. g4 {[%clk 0:01:53.7]} 17... b5 {[%clk 0:01:57.6]} 18. g5 {[%clk
0:01:49.4]} 18... Nh5 {[%clk 0:01:55.9]} 19. Bd7 {[%clk 0:01:50]} 19... Red8
{[%clk 0:01:33.6]} 20. Bc6 {[%clk 0:01:46.8]} 20... Rab8 {[%clk 0:01:26]} 21.
cxb5 {[%clk 0:01:47.1]} 21... Qa4 {[%clk 0:01:04.2]} 22. Rxe7 {[%clk 0:01:39.3]}
22... Nxf4 {[%clk 0:00:28.6]} 23. Kh1 {[%clk 0:01:32]} 23... Nh3 {[%clk
0:00:23.8]} 24. f3 {[%clk 0:01:29.4]} 24... Qh4 {[%clk 0:00:21.6]} 25. Rae1
{[%clk 0:01:20]} 25... Nxg5 {[%clk 0:00:19.9]} 26. Qg2 {[%clk 0:01:13.8]} 26...
Nh3 {[%clk 0:00:17.4]} 27. Qg3 {[%clk 0:01:11.1]} 27... Qh6 {[%clk 0:00:17]} 28.
Be8 {[%clk 0:01:01.8]} 28... Kh8 {[%clk 0:00:11.7]} 29. Bxf7 {[%clk 0:00:58.1]}
29... Nf4 {[%clk 0:00:11.8]} 30. Be6 {[%clk 0:00:52.7]} 30... Rf8 {[%clk
0:00:12]} 31. Re4 {[%clk 0:00:48.8]} 31... Nh5 {[%clk 0:00:10.4]} 32. Qg4 {[%clk
0:00:45.6]} 32... Qc1+ {[%clk 0:00:10.7]} 33. Qg1 {[%clk 0:00:45.6]} 33... Qxc3
{[%clk 0:00:09.8]} 34. Bg4 {[%clk 0:00:43.6]} 34... Nf6 {[%clk 0:00:08.9]} 35.
Re3 {[%clk 0:00:42.7]} 35... Qd4 {[%clk 0:00:09]} 36. Rxa7 {[%clk 0:00:29.7]}
36... Rxb5 {[%clk 0:00:09]} 37. Ree7 {[%clk 0:00:29]} 37... Qxd5 {[%clk
0:00:08.9]} 38. Qa1 {[%clk 0:00:27.2]} 38... Qd4 {[%clk 0:00:08.9]} 39. Qxd4
{[%clk 0:00:24.9]} 39... cxd4 {[%clk 0:00:09.8]} 40. Ra4 {[%clk 0:00:25.2]}
40... Rd5 {[%clk 0:00:09.7]} 41. Be6 {[%clk 0:00:21.2]} 41... Re5 {[%clk
0:00:10.1]} 42. Rxd4 {[%clk 0:00:20.1]} 42... Ng8 {[%clk 0:00:10.7]} 43. Bxg8
{[%clk 0:00:18.9]} 43... Rxe7 {[%clk 0:00:11.6]} 44. Bd5 {[%clk 0:00:19.1]}
44... Re2 {[%clk 0:00:11.3]} 45. Be4 {[%clk 0:00:18.2]} 45... Rc8 {[%clk
0:00:11.6]} 46. Rd1 {[%clk 0:00:16.4]} 46... Rxa2 {[%clk 0:00:12.2]} 47. Kg1
{[%clk 0:00:15.3]} 47... Rb2 {[%clk 0:00:12.5]} 48. h4 {[%clk 0:00:12.6]} 48...
Kg7 {[%clk 0:00:12.4]} 49. h5 {[%clk 0:00:12.1]} 49... g5 {[%clk 0:00:11.2]} 50.
Ra1 {[%clk 0:00:11.6]} 50... h6 {[%clk 0:00:10.5]} 51. Kf1 {[%clk 0:00:11]}
51... Kf6 {[%clk 0:00:11]} 52. Kg1 {[%clk 0:00:10.7]} 52... Ke5 {[%clk
0:00:11.4]} 53. Rd1 {[%clk 0:00:04.9]} 53... Kf4 {[%clk 0:00:11.6]} 54. Bd5
{[%clk 0:00:04.4]} 54... Kg3 {[%clk 0:00:11.1]} 55. Kh1 {[%clk 0:00:04.9]} 55...
Rcc2 {[%clk 0:00:10.7]} 56. Kg1 {[%clk 0:00:04.8]} 56... Rg2+ {[%clk 0:00:10.3]}
57. Kh1 {[%clk 0:00:04.8]} 57... Rh2+ {[%clk 0:00:10.6]} 58. Kg1 {[%clk
0:00:05.7]} 58... Rbg2+ {[%clk 0:00:10.8]} 59. Kf1 {[%clk 0:00:06.6]} 59... Rh1#
{[%clk 0:00:06.5]} 0-1

[Event "Late-Titled-Tuesday-Blitz-February-20-2024"]
[Site "Chess.com"]
[Date "2024.02.20"]
[Round "5"]
[White "DarkAlekhine"]
[Black "pooh2012"]
[Result "1-0"]
[WhiteElo "2837"]
[BlackElo "2568"]
[TimeControl "180+1"]
[EndTime "14:56:36 PST"]
[Termination "DarkAlekhine won by resignation"]

1. d4 {[%clk 0:03:00.9]} 1... Nf6 {[%clk 0:02:59.2]} 2. Bf4 {[%clk 0:03:01]}
2... e6 {[%clk 0:02:58.3]} 3. e3 {[%clk 0:03:01.2]} 3... b6 {[%clk 0:02:54.8]}
4. Nf3 {[%clk 0:03:00.7]} 4... Bb7 {[%clk 0:02:54.1]} 5. h3 {[%clk 0:03:01.3]}
5... Be7 {[%clk 0:02:53.3]} 6. Bd3 {[%clk 0:02:57.3]} 6... c5 {[%clk 0:02:52]}
7. O-O {[%clk 0:02:57]} 7... O-O {[%clk 0:02:51.2]} 8. Nbd2 {[%clk 0:02:57]}
8... cxd4 {[%clk 0:02:49.7]} 9. exd4 {[%clk 0:02:57]} 9... d6 {[%clk 0:02:49.7]}
10. Bh2 {[%clk 0:02:56.7]} 10... Nc6 {[%clk 0:02:47]} 11. c3 {[%clk 0:02:52.4]}
11... Qc7 {[%clk 0:02:26]} 12. Re1 {[%clk 0:02:51.7]} 12... Rad8 {[%clk
0:02:20.1]} 13. Qe2 {[%clk 0:02:43.3]} 13... Rfe8 {[%clk 0:02:15.5]} 14. Nc4
{[%clk 0:02:26.7]} 14... Qb8 {[%clk 0:02:04.8]} 15. a4 {[%clk 0:02:25.8]} 15...
Bf8 {[%clk 0:01:44.2]} 16. Qc2 {[%clk 0:01:58.9]} 16... g6 {[%clk 0:01:31.5]}
17. Qb3 {[%clk 0:01:48.3]} 17... Na5 {[%clk 0:01:03.1]} 18. Nxa5 {[%clk
0:01:47.3]} 18... Bxf3 {[%clk 0:01:01]} 19. gxf3 {[%clk 0:01:43.9]} 19... bxa5
{[%clk 0:01:00.4]} 20. Qxb8 {[%clk 0:01:43.5]} 20... Rxb8 {[%clk 0:00:59.7]} 21.
Re2 {[%clk 0:01:41.8]} 21... Rb6 {[%clk 0:00:58.6]} 22. Bf4 {[%clk 0:01:15.9]}
22... Reb8 {[%clk 0:00:50.9]} 23. Bc1 {[%clk 0:01:15.2]} 23... h5 {[%clk
0:00:47.9]} 24. Rc2 {[%clk 0:01:05.5]} 24... Kh7 {[%clk 0:00:45.8]} 25. Kg2
{[%clk 0:00:52.5]} 25... Bh6 {[%clk 0:00:44.6]} 26. f4 {[%clk 0:00:52.8]} 26...
Nd5 {[%clk 0:00:41.1]} 27. Kf3 {[%clk 0:00:52.7]} 27... Rc8 {[%clk 0:00:36.6]}
28. Bd2 {[%clk 0:00:43.9]} 28... Rcb8 {[%clk 0:00:33.6]} 29. Ra2 {[%clk
0:00:40.8]} 29... Kg7 {[%clk 0:00:23.3]} 30. Be4 {[%clk 0:00:40.8]} 30... Nf6
{[%clk 0:00:22.8]} 31. Bd3 {[%clk 0:00:38.9]} 31... Nd5 {[%clk 0:00:22.3]} 32.
Be4 {[%clk 0:00:38.8]} 32... Nf6 {[%clk 0:00:20.6]} 33. b4 {[%clk 0:00:38.4]}
33... d5 {[%clk 0:00:11.6]} 34. Bd3 {[%clk 0:00:34.3]} 34... Ne8 {[%clk
0:00:10.2]} 35. b5 {[%clk 0:00:32.1]} 35... Nd6 {[%clk 0:00:09.2]} 36. Bc1
{[%clk 0:00:32.1]} 36... Kg8 {[%clk 0:00:07.3]} 37. Ba3 {[%clk 0:00:31.6]} 37...
Bf8 {[%clk 0:00:07.9]} 38. Bc5 {[%clk 0:00:30.2]} 38... R6b7 {[%clk 0:00:08.1]}
39. Ra1 {[%clk 0:00:24]} 39... Nc4 {[%clk 0:00:08]} 40. Bxc4 {[%clk 0:00:21.1]}
40... dxc4 {[%clk 0:00:07.5]} 41. Re1 {[%clk 0:00:17.4]} 41... Rd7 {[%clk
0:00:06.7]} 42. Bxf8 {[%clk 0:00:13.4]} 42... Kxf8 {[%clk 0:00:05.8]} 43. Re5
{[%clk 0:00:14.3]} 43... Rc8 {[%clk 0:00:05.7]} 44. Rce2 {[%clk 0:00:14.3]}
44... Rd6 {[%clk 0:00:05.5]} 45. Rc5 {[%clk 0:00:14.2]} 45... Rdd8 {[%clk
0:00:03.1]} 46. Ree5 {[%clk 0:00:13.7]} 46... Ke7 {[%clk 0:00:03.2]} 47. Rxc8
{[%clk 0:00:12.5]} 47... Rxc8 {[%clk 0:00:04.1]} 48. Rc5 {[%clk 0:00:12.8]}
48... Kd7 {[%clk 0:00:04.8]} 49. Ke4 {[%clk 0:00:13]} 49... f6 {[%clk
0:00:03.3]} 50. Ke3 {[%clk 0:00:11.5]} 50... Re8 {[%clk 0:00:02.9]} 51. Rxc4
{[%clk 0:00:11]} 51... Kd6 {[%clk 0:00:03.5]} 52. Rc5 {[%clk 0:00:11]} 52... Rb8
{[%clk 0:00:02.5]} 53. Rc6+ {[%clk 0:00:10.9]} 53... Kd7 {[%clk 0:00:03.1]} 54.
Ra6 {[%clk 0:00:10.7]} 54... Rb7 {[%clk 0:00:03.6]} 55. Rxa5 {[%clk 0:00:11.2]}
55... Rc7 {[%clk 0:00:04.2]} 56. Kd3 {[%clk 0:00:10.8]} 56... Kd6 {[%clk
0:00:04.9]} 57. Ra6+ {[%clk 0:00:10.9]} 57... Kd7 {[%clk 0:00:05.1]} 58. c4
{[%clk 0:00:10.8]} 58... Ke7 {[%clk 0:00:05.2]} 59. c5 {[%clk 0:00:11]} 59...
Rd7 {[%clk 0:00:05.9]} 60. Kc4 {[%clk 0:00:11.2]} 1-0